Cogmind - Beta 12 --- EXPLORER MODE // 2023.03.17 @ 06:12:25 Player: Olexender Result: Destroyed by G-50 Soldier with Heavy Laser Performance ------------- Evolutions (4) 2000 Regions Visited (17) 3400 Robots Destroyed (225) 1125 Value Destroyed (12798) 12798 Prototype IDs (41) 820 Alien Tech Used (0) 0 Bonus (4127) 4127 TOTAL SCORE: 24270 Bonus ------- High Alert Combat Kills 1685 Follower Combat Kills 904 Entered Garrisons 600 Used RIF Installer 1000 Aligned with FarCom 300 Met Data Miner 300 Friendly Fire -662 Cogmind --------- Core Integrity 0/850 Matter 246/300 Energy 700/700 System Corruption 0% Temperature Cool (9) Movement Walking (194) Ox1 Location -6/Garrison Parts ------- > --- POWER (2) -------- Angular Momentum Engine F-cell Engine > --- PROPULSION (5) --- Titanium Leg Titanium Leg Flexi-carbon Leg Flexi-carbon Leg Flexi-carbon Leg > --- UTILITY (6) ------ Advanced Heat Sink Huge Storage Unit Improved Light Armor Plating Improved Powered Armor (fused) Improved System Shield System Guard > --- WEAPON (3) ------- Gauss Rifle Coil Gun Heavy Machine Gun > --- INVENTORY (25) --- Reinforced Deuterium Engine Advanced Heat Sink Advanced Heat Sink Advanced Heat Sink Energy Well (350) Matter Compressor (250) Matter Compressor (250) Advanced Targeting Computer Improved Kinecellerator Improved Kinecellerator Stasis Canceller Transmission Jammer Advanced Hardlight Generator Advanced Hardlight Generator Force Field Point Defense Array Heart of Steel Flak Gun Flak Gun Heavy Gauss Cannon Remote Datajack Scythe Peak State ------------ > --- POWER ------------ Light Antimatter Reactor Light Quantum Reactor > --- PROPULSION ------- Flexi-carbon Leg Flexi-carbon Leg Flexi-carbon Leg Armored Leg Myomer Leg > --- UTILITY ---------- Improved Heat Sink Huge Storage Unit Layered Medium Armor Plating Improved Powered Armor Improved System Shield System Guard > --- WEAPON ----------- Heavy Machine Gun Improved Plasma Cutter Improved Plasma Cutter > --- INVENTORY -------- Angular Momentum Engine F-cell Engine Titanium Leg Flexi-carbon Leg Flexi-carbon Leg Improved Heat Sink Energy Well Matter Compressor Advanced Targeting Computer Stasis Canceller Transmission Jammer Improved Light Armor Plating Advanced Hardlight Generator Advanced Hardlight Generator Force Field Point Defense Array Heart of Steel Flak Gun Coil Gun Heavy Gauss Cannon Remote Datajack Improved Plasma Cutter Scythe [Rating: 98] Favorites ----------- Power Light Angular Momentum Engine Engine Light Angular Momentum Engine Power Core Light Nuclear Core Reactor Antimatter Reactor Propulsion Flexi-carbon Leg Treads Improved Treads Leg Flexi-carbon Leg Utility Huge Storage Unit Device Improved Cryofiber Web Storage Huge Storage Unit Processor System Guard Hackware Improved System Shield Protection Utility Shielding Weapon Flak Gun Energy Gun Beam Rifle Ballistic Gun Flak Gun Ballistic Cannon Magnetic Acceleration Cannon Launcher Precision Rocket Launcher Special Weapon Improved Plasma Cutter Slashing Weapon Segregator Special Melee Weapon Improved Datajack Build | -11 -10 -10 -10 -9 -8 -8 -7 -7 -7 -7 -7 -7 -6 -6 -6 -6 -6 ------- Run | Jun Mat Min Exi Min Mat Gar Fac Was Fac Low Low Dat Pro Fac Gar Fac Gar Slots Evolved 9 | . 1 . . . 4 . 2 . . . . . . 2 . . . Power 1 | . . . . . 1 . . . . . . . . . . . . Propulsion 3 | . . . . . 1 . 1 . . . . . . 1 . . . Utility 4 | . 1 . . . 1 . 1 . . . . . . 1 . . . Weapon 1 | . . . . . 1 . . . . . . . . . . . . Parts Attached 327 | 7 11 1 4 . 8 26 5 16 34 3 8 . 27 38 46 21 72 Power 55 | 1 2 1 1 . 3 9 1 2 3 . . . 2 9 8 3 10 Engine 29 | 1 2 1 1 . 1 2 1 1 3 . . . 2 2 5 2 5 Core 20 | . . . . . 2 7 . . . . . . . 6 3 1 1 Reactor 6 | . . . . . . . . 1 . . . . . 1 . . 4 Propulsion 64 | 2 1 . 2 . 1 2 2 4 9 . 4 . 6 7 10 1 13 Treads 2 | . . . . . . . . . . . . . 2 . . . . Leg 62 | 2 1 . 2 . 1 2 2 4 9 . 4 . 4 7 10 1 13 Wheel . | . . . . . . . . . . . . . . . . . . Hover . | . . . . . . . . . . . . . . . . . . Flight . | . . . . . . . . . . . . . . . . . . Utility 117 | 2 3 . 1 . 3 6 2 8 15 3 1 . 10 12 18 13 20 Device 67 | . 2 . . . 2 3 . 7 13 2 . . 6 6 9 7 10 Storage 6 | 1 . . 1 . . . 1 . . . . . . . . 2 1 Processor 8 | 1 . . . . . . . . 1 . . . . 1 . 3 2 Hackware 12 | . . . . . . . . 1 . . . . . 3 5 . 3 Protection 24 | . 1 . . . 1 3 1 . 1 1 1 . 4 2 4 1 4 Artifact . | . . . . . . . . . . . . . . . . . . Weapon 91 | 2 5 . . . 1 9 . 2 7 . 3 . 9 10 10 4 29 Energy Gun 21 | 1 2 . . . . 2 . . 2 . . . 2 3 3 2 4 Energy Cannon . | . . . . . . . . . . . . . . . . . . Ballistic Gun 34 | 1 3 . . . 1 1 . . 4 . 2 . 3 2 4 1 12 Ballistic Cannon 7 | . . . . . . . . . 1 . . . . 2 . . 4 Launcher 7 | . . . . . . 3 . . . . . . . 1 . 1 2 Special Weapon 9 | . . . . . . . . . . . . . 2 1 1 . 5 Impact Weapon . | . . . . . . . . . . . . . . . . . . Slashing Weapon 12 | . . . . . . 3 . 1 . . 1 . 2 1 2 . 2 Piercing Weapon . | . . . . . . . . . . . . . . . . . . Special Melee Weapon 1 | . . . . . . . . 1 . . . . . . . . . Unidentified Prototypes 8 | . . . . . . . . . 2 . . . 2 2 . 2 . Parts Lost 71 | . 1 . . . . 8 . 4 7 3 4 . 12 9 15 . 8 Power 19 | . 1 . . . . 3 . . 2 . 2 . . 3 5 . 3 Propulsion 20 | . . . . . . 1 . 1 2 1 . . 5 2 5 . 3 Utility 19 | . . . . . . 1 . 2 3 2 1 . 4 2 2 . 2 Weapon 13 | . . . . . . 3 . 1 . . 1 . 3 2 3 . . Highest Loss Streak 8 | . 1 . . . . 3 . 3 5 2 3 . 6 3 8 . 3 To Critical Strikes . | . . . . . . . . . . . . . . . . . . Average Slot Usage (%) 95 | . 100 100 100 100 100 99 96 93 98 99 89 85 84 93 97 99 97 Engine 6 | . 12 12 12 12 7 2 5 2 4 7 4 . 12 2 7 7 2 Core 3 | . . . . . 8 13 8 7 2 . . . . 7 3 4 . Reactor 2 | . . . . . . . . 3 7 7 2 . . . . . 7 Leg 27 | . 25 25 25 25 25 25 25 27 27 27 25 28 20 30 30 31 30 Device 13 | . 9 12 12 12 13 2 . 14 22 27 25 21 14 18 11 15 7 Storage 7 | . 12 12 12 12 8 8 7 7 7 7 7 7 7 6 6 6 6 Processor 2 | . 2 . . . . . . . . . . . . . 1 7 8 Hackware 3 | . . . . . . . . 6 4 . . . . . 13 6 7 Protection 7 | . 12 12 12 12 10 22 28 3 . . 2 7 9 9 . . 6 Energy Gun 5 | . 12 12 12 12 8 4 7 7 3 7 2 . 6 4 8 5 . Ballistic Gun 9 | . 12 12 12 12 16 10 7 2 13 14 13 14 7 1 7 12 10 Ballistic Cannon 1 | . . . . . . . . . . . . . . 5 . . 2 Slashing Weapon 2 | . . . . . . 8 7 4 1 . 4 7 6 4 1 . . Naked Turns . | . . . . . . . . . . . . . . . . . . Heaviest Build 150 | 16 23 23 33 33 47 49 112 113 130 130 129 105 134 130 130 130 150 Greatest Support 106 | 20 20 20 60 60 70 75 95 95 91 85 65 50 69 106 106 96 105 Greatest Overweight (x) 5 | 1 1 1 1 . . . 1 1 1 1 2 2 5 1 2 1 1 Average Overweight (x) . | . . 1 . . . . . 1 1 1 1 2 1 . 1 1 1 Largest Inventory Capacity 25 | 10 10 10 15 15 15 15 25 25 25 25 25 25 25 25 25 25 25 Average Capacity 22 | 7 10 10 11 15 15 15 20 25 25 25 25 25 25 25 25 25 25 Most Carried 25 | 6 10 10 13 15 14 15 15 18 25 25 25 21 25 25 25 25 25 Average Carried 19 | 4 9 9 10 13 12 13 12 15 20 22 23 21 18 19 24 23 23 Final Capacity 25 | 10 10 10 15 15 15 15 25 25 25 25 25 25 25 25 25 25 25 Final Carried 25 | 6 10 10 13 14 13 13 15 15 24 25 21 21 16 24 25 23 24 Class Distribution -------------------- 33% | Scavenger-Mutant 23% | Hacker-Mutant 12% | Hacker-Skirmisher 9% | Scavenger-Tank 6% | Bothacker-Tank 4% | Scavenger-Skirmisher 4% | Hacker-Tank 3% | Bothacker-Gunner Dominant Class ---------------- Hacker-Mutant | -10/Materials Hacker-Mutant | -10/Mines Hacker-Mutant | -10/Exiles Hacker-Mutant | -9/Mines Hacker-Skirmisher | -8/Materials Scavenger-Mutant | -8/Garrison Scavenger-Mutant | -7/Factory Scavenger-Mutant | -7/Waste Scavenger-Mutant | -7/Factory Scavenger-Tank | -7/Lower Caves Scavenger-Mutant | -7/Lower Caves Scavenger-Mutant | -7/Data Miner Scavenger-Mutant | -6/Proximity Caves Hacker-Mutant | -6/Factory Bothacker-Tank | -6/Garrison Hacker-Skirmisher | -6/Factory Hacker-Skirmisher | -6/Garrison Resources | -11 -10 -10 -10 -9 -8 -8 -7 -7 -7 -7 -7 -7 -6 -6 -6 -6 -6 ----------- Run | Jun Mat Min Exi Min Mat Gar Fac Was Fac Low Low Dat Pro Fac Gar Fac Gar Matter Collected 10608 | 271 513 60 . 49 83 1030 85 155 1193 207 292 . 910 875 1474 490 2921 Remotely . | . . . . . . . . . . . . . . . . . . Salvage Created 9376 | 83 266 152 . 79 43 1296 . . 2160 197 168 . 778 941 1155 300 1758 Parts 444 | 2 22 7 . 1 3 63 . . 116 11 10 . 28 44 47 21 69 Haulers Intercepted 2 | . 1 . . . . . . . 1 . . . . . . . . Recyclers Shooed 3 | . . . . 1 . . . . 1 . . . . 1 . . . Parts Field Recycled . | . . . . . . . . . . . . . . . . . . Retrieved Matter . | . . . . . . . . . . . . . . . . . . Parts Self-Destructed . | . . . . . . . . . . . . . . . . . . Prevented . | . . . . . . . . . . . . . . . . . . Kills | -11 -10 -10 -10 -9 -8 -8 -7 -7 -7 -7 -7 -7 -6 -6 -6 -6 -6 ------- Run | Jun Mat Min Exi Min Mat Gar Fac Was Fac Low Low Dat Pro Fac Gar Fac Gar Combat Hostiles Destroyed 184 | . 6 4 . . 1 29 . . 30 6 5 . 18 12 26 6 41 Melee 14 | . . . . . . 6 . . 3 . 1 . 2 . . . 2 Guns 149 | . 6 4 . . 1 21 . . 27 6 4 . 15 3 26 6 30 Cannons 14 | . . . . . . . . . . . . . . 8 . . 6 AOE 5 | . . . . . . 2 . . . . . . . . . . 3 Classes Destroyed 19 | 1 5 . . . 1 4 . . 4 . 3 . . . . . 1 Worker 8 | . 1 . . . . . . . 4 . . . . 2 . 1 . Builder 2 | . . . . . . . . . 2 . . . . . . . . Tunneler 2 | . . . . . . . . . 2 . . . . . . . . Hauler 2 | . 1 . . . . . . . 1 . . . . . . . . Recycler 8 | 1 . . . 1 . . . . 4 . . . . 2 . . . Operator 1 | . . . . . . . . . 1 . . . . . . . . Watcher 15 | . 3 . . . . 2 . . 7 . . . . 1 . . 2 Swarmer 35 | . 4 . . . . 10 . . . 3 . . 4 1 9 . 4 Cutter 2 | . . . . . . 2 . . . . . . . . . . . Saboteur 3 | . . . . . . . . . . . . . . . . . 3 Grunt 69 | . 2 4 . . . 7 . . 19 3 . . 7 3 10 . 14 Brawler 6 | . . . . . . 1 . . 1 . . . 2 . 1 . 1 Duelist 5 | . . . . . . 1 . . . . . . 1 . . . 3 Sentry 32 | . . . . . 1 7 . . 3 . . . 2 2 2 2 13 Hunter 11 | . . . . . . 1 . . 4 . . . . 6 . . . Programmer 17 | . . . . . . . . . 3 . 2 . 2 1 4 4 1 Behemoth 3 | . . . . . . . . . . . 1 . . . . . 2 Enhanced Grunt 1 | . . . . . . . . . . . . . 1 . . . . Thief 1 | . . . . . . . . . . . 1 . . . . . . Thug 1 | . . . . . . . . . . . . . . . . . 1 Mutant 1 | . . . . . . . . . . . 1 . . . . . . Best Kill Streak 8 | 1 5 2 . 1 1 4 . . 8 3 2 . 6 4 7 2 7 Combat Bots Only 7 | . 4 2 . . 1 4 . . 4 3 2 . 6 3 7 1 7 Max Kills in Single Turn 4 | 1 2 1 . 1 1 2 . . 4 2 1 . 1 1 2 2 3 Gunslinging 1 | . 1 . . . . . . . . 1 . . . . 1 . 1 Exploded 3 | . . . . . . 2 . . . . . . . . . . 3 Melee 1 | . . . . . . 1 . . 1 . 1 . 1 . . . 1 Uniques/NPCs Destroyed . | . . . . . . . . . . . . . . . . . . Combat | -11 -10 -10 -10 -9 -8 -8 -7 -7 -7 -7 -7 -7 -6 -6 -6 -6 -6 -------- Run | Jun Mat Min Exi Min Mat Gar Fac Was Fac Low Low Dat Pro Fac Gar Fac Gar Damage Taken 10838 | . 148 100 . . 38 1535 18 134 1417 159 294 . 1310 1524 1409 104 2648 Core 1519 | . 34 6 . . . 267 . . 224 5 36 . 93 248 195 . 411 Absorbed by Shields 1896 | . . . . . . . . . 383 66 96 . 93 220 381 41 616 Redirected to Shielding 209 | . 1 . . . . 85 3 . . . . . . 113 7 . . Regen/Repaired (Parts) 32 | . 32 . . . . . . . . . . . . . . . . Core Remaining (%) 70 | 100 . . . 84 . 51 . . . . . . 48 . . . . Volleys Fired 781 | 1 27 15 1 1 2 155 2 . 94 13 18 . 71 80 107 11 183 Largest 3 | 2 2 2 1 2 3 3 2 . 3 3 2 . 2 3 3 3 3 Hottest 166 | 70 88 88 23 88 111 111 79 . 112 76 56 . 84 166 152 143 160 Shots Fired 1797 | 2 55 21 1 2 6 337 4 1 237 37 34 . 102 172 278 31 477 Gun 1531 | 2 55 21 1 2 6 327 4 1 237 37 34 . 101 101 266 31 305 Cannon 141 | . . . . . . . . . . . . . . 71 10 . 60 Launcher 13 | . . . . . . 10 . . . . . . . . . . 3 Special 112 | . . . . . . . . . . . . . 1 . 2 . 109 Kinetic 1234 | 1 27 15 1 1 4 236 2 . 192 26 33 . 78 104 132 23 359 Thermal 507 | 1 28 6 . 1 2 91 2 1 45 11 1 . 23 68 105 8 114 Explosive 13 | . . . . . . 10 . . . . . . . . . . 3 Electromagnetic 39 | . . . . . . . . . . . . . . . 39 . . Robot Hit Streak 68 | 2 14 22 . 6 9 54 17 . 27 30 35 . 56 45 59 60 68 Robot Miss Streak 6 | . 3 1 . . 1 4 . . 3 6 2 . 6 2 5 3 5 Penetration Max 1 | . . . . . . . . . 1 . 1 . . 1 1 . 1 Secondary Targets 24 | . 2 1 . . . 4 . . 2 3 . . . 1 4 . 7 Max Gunslinging Chain 2 | . 1 1 . . . 1 . . 1 1 . . . 1 2 . 1 Shots Hit Robots 1277 | 2 41 17 . 1 4 257 4 9 203 29 31 . 95 147 141 26 270 Core Hits 855 | 2 20 13 . 4 3 167 2 . 158 29 32 . 108 42 76 25 174 Critical Kills 6 | . . . . . . 1 . . 2 . . . . 1 1 . 1 Critical Parts Destroyed 17 | . . . . . . 2 . . 1 1 . . 1 7 . . 5 Critical Strikes 56 | . 1 . . . . 11 . . 7 1 . . 5 17 4 . 10 Burn 17 | . 1 . . . . 1 . . 4 . . . 3 5 3 . . Destroy 24 | . . . . . . 3 . . 3 1 . . 1 8 1 . 7 Blast 7 | . . . . . . . . . . . . . . 4 . . 3 Sever 8 | . . . . . . 7 . . . . . . 1 . . . . Melee Attacks 236 | . . . . . . 173 . 9 12 . 4 . 23 6 8 . 1 Thermal 30 | . . . . . . . . . . . . . 16 6 8 . . Impact . | . . . . . . . . . . . . . . . . . . Slashing 197 | . . . . . . 173 . . 12 . 4 . 7 . . . 1 Piercing . | . . . . . . . . . . . . . . . . . . Sneak Attacks 4 | . . . . . . . . 3 . . . . . 1 . . . Combat Hostiles 3 | . . . . . . . . 3 . . . . . . . . . Follow-up Attacks 3 | . . . . . . 3 . . . . . . . . . . . Damage Inflicted 26943 | 18 535 234 . 16 56 4079 49 . 4635 591 879 . 2220 3161 2971 739 6760 Guns 20957 | 18 522 234 . 15 56 3106 49 . 3772 591 754 . 2044 1461 2753 660 4922 Cannons 3065 | . . . . . . . . . . . . . . 1632 161 . 1272 Explosions 1213 | . . . . . . 192 . . 429 . . . . . 57 . 535 Melee 1505 | . . . . . . 781 . . 392 . 125 . 176 . . . 31 Ramming 203 | . 13 . . 1 . . . . 42 . . . . 68 . 79 . Kinetic 18506 | 6 214 159 . . 30 1766 20 . 3123 421 754 . 1751 1885 1665 518 6194 Thermal 5347 | 12 308 75 . 15 26 1340 29 . 649 170 . . 293 1208 1080 142 . Explosive 727 | . . . . . . 192 . . . . . . . . . . 535 Electromagnetic 655 | . . . . . . . . . 429 . . . . . 226 . . Impact . | . . . . . . . . . . . . . . . . . . Slashing 1505 | . . . . . . 781 . . 392 . 125 . 176 . . . 31 Piercing . | . . . . . . . . . . . . . . . . . . Highest Corruption 13 | . 1 1 1 1 . . . 9 10 10 10 10 13 . 3 3 3 Average Corruption 6 | . 1 1 1 1 . . . 5 7 10 10 10 12 . 2 3 3 Corruption Purged 6 | . . . . . . . . 6 . . . . . . . . . Corruption Blocked . | . . . . . . . . . . . . . . . . . . Effects 372 | . 9 4 2 . . . . 12 79 26 39 7 117 . 41 25 11 Message Errors 84 | . 1 1 . . . . . 3 20 6 8 1 27 . 7 8 2 Matter Fused 73 | . 1 1 . . . . . 2 10 11 7 2 23 . 8 7 1 Heat Flow Errors 56 | . 1 1 . . . . . 2 10 3 4 1 15 . 10 3 6 Energy Discharges 47 | . 1 . 1 . . . . 1 13 3 9 . 15 . 3 1 . Parts Rejected 6 | . . . . . . . . . 2 . 2 . 1 . 1 . . Parts Fused 9 | . . . . . . . . . 1 . 1 . 3 . 3 . 1 Data Loss (minor) 52 | . 4 . 1 . . . . 2 11 2 3 2 17 . 5 4 1 Data Loss (major) 6 | . . 1 . . . . . . 1 1 . 1 2 . . . . Misfires 16 | . 1 . . . . . . 1 4 . 1 . 7 . 1 1 . Alerts 8 | . . . . . . . . 1 2 . 2 . . . 2 1 . Misdirections 2 | . . . . . . . . . 1 . . . 1 . . . . Weapon Failures 13 | . . . . . . . . . 4 . 2 . 6 . 1 . . Overload Shots . | . . . . . . . . . . . . . . . . . . Overflow Damage 226 | . . . . . . 9 . . 58 . . . . 52 8 . 99 Projectiles 110 | . . . . . . . . . . . . . . 52 8 . 50 Explosions 58 | . . . . . . 9 . . . . . . . . . . 49 Melee 58 | . . . . . . . . . 58 . . . . . . . . Knockbacks 22 | . . . . . . . . . . . . . . 11 2 1 8 Impact 2 | . . . . . . . . . . . . . . 1 . 1 . Kinetic 20 | . . . . . . . . . . . . . . 10 2 . 8 Secondary . | . . . . . . . . . . . . . . . . . . Self-Inflicted Damage 354 | . . . . . . 222 . . . . . . . . 42 . 90 Shots 11 | . . . . . . 8 . . . . . . . . 1 . 2 Rammed . | . . . . . . . . . . . . . . . . . . Targets Rammed 15 | . 3 . . 1 . . . . 3 . . . . 3 . 5 . Kicked 15 | . 3 . . 1 . . . . 3 . . . . 3 . 5 . Crushed . | . . . . . . . . . . . . . . . . . . Highest Temperature 748 | 30 222 150 . 27 54 315 42 249 331 245 167 177 254 712 748 180 644 Average Temperature 112 | 18 47 63 . 15 34 66 22 103 104 88 52 100 66 236 128 48 160 Received Heat Transfer 4530 | . 51 111 . . 18 846 . . 682 80 27 . 540 147 595 . 1433 Effects 57 | . . . . . . . . . . . . . . 9 27 . 21 Shutdowns 9 | . . . . . . . . . . . . . . . 2 . 7 Energy Bleed 4 | . . . . . . . . . . . . . . 1 . . 3 Interference 10 | . . . . . . . . . . . . . . . 6 . 4 Matter Decay 6 | . . . . . . . . . . . . . . 1 4 . 1 Short Circuit 3 | . . . . . . . . . . . . . . 1 1 . 1 Damage (minor) 4 | . . . . . . . . . . . . . . 2 2 . . Damage (major) 18 | . . . . . . . . . . . . . . 3 12 . 3 Damage (core) 3 | . . . . . . . . . . . . . . 1 . . 2 Siege Activations . | . . . . . . . . . . . . . . . . . . Robots Corrupted . | . . . . . . . . . . . . . . . . . . Combat Hostiles . | . . . . . . . . . . . . . . . . . . Parts Fried 2 | . . . . . . . . . 2 . . . . . . . . Impact Corruptions . | . . . . . . . . . . . . . . . . . . Robots Melted 2 | . . . . . . . . . . . . . 1 1 . . . Combat Hostiles 2 | . . . . . . . . . . . . . 1 1 . . . Parts Melted 10 | . . . . . . 3 . . . . . . 2 1 3 1 . Heat Transferred 11146 | 37 864 95 . 20 35 2036 74 . 1813 333 . . 814 2479 2196 350 . Parts Sabotaged 4 | . . . . . . . . . . . . . . . . . 4 Parts Stolen 3 | . . . . . . . . . . . 3 . . . . . . Parts Stripped . | . . . . . . . . . . . . . . . . . . Power Chain Reactions 1 | . . . . . . . . . . . . . . . 1 . . Missiles Intercepted . | . . . . . . . . . . . . . . . . . . Alert | -11 -10 -10 -10 -9 -8 -8 -7 -7 -7 -7 -7 -7 -6 -6 -6 -6 -6 ------- Run | Jun Mat Min Exi Min Mat Gar Fac Was Fac Low Low Dat Pro Fac Gar Fac Gar Peak Influence 2493 | 5 166 115 . 5 46 1513 634 160 318 . . . . 184 1690 715 2493 Initial 658 | . 2 . . . 1 22 589 152 . . . . . . 5 658 16 Average 453 | 1 24 27 . 2 5 728 598 123 92 . . . . 36 771 250 1133 Maximum Alert Level 5 | . . . . . . 4 2 . 1 . . . . . 5 3 5 Low Security (%) 54 | 100 100 100 . 100 100 23 . 100 84 . . . . 100 9 62 7 Level 1 5 | . . . . . . 6 . . 15 . . . . . 14 . 2 Level 2 12 | . . . . . . 23 100 . . . . . . . 29 21 11 Level 3 13 | . . . . . . 18 . . . . . . . . 20 16 35 Level 4 10 | . . . . . . 27 . . . . . . . . 21 . 23 Level 5 4 | . . . . . . . . . . . . . . . 4 . 19 High Security . | . . . . . . . . . . . . . . . . . . Max Security . | . . . . . . . . . . . . . . . . . . Squads Dispatched 24 | . 2 . . . . . . . 9 . . . 1 9 . 3 . Investigation 8 | . 2 . . . . . . . 4 . . . . 2 . . . Extermination 10 | . . . . . . . . . 3 . . . . 4 . 3 . Reinforcement 5 | . . . . . . . . . 2 . . . . 3 . . . Assault 1 | . . . . . . . . . . . . . 1 . . . . Garrison . | . . . . . . . . . . . . . . . . . . Intercept . | . . . . . . . . . . . . . . . . . . Searches Triggered . | . . . . . . . . . . . . . . . . . . Data Miner Redirects 1 | . . . . . . . . . . . . . . 1 . . . Construction Impeded . | . . . . . . . . . . . . . . . . . . Haulers Reinforced 1 | . . . . . . . . . . . . . . 1 . . . Active Scanning Responses . | . . . . . . . . . . . . . . . . . . Cargo Convoy Interrupts . | . . . . . . . . . . . . . . . . . . Stealth | -11 -10 -10 -10 -9 -8 -8 -7 -7 -7 -7 -7 -7 -6 -6 -6 -6 -6 --------- Run | Jun Mat Min Exi Min Mat Gar Fac Was Fac Low Low Dat Pro Fac Gar Fac Gar Distress Signals 6 | . . . . . . 1 . . 1 . . . . 3 . . 1 Communications Jammed . | . . . . . . . . . . . . . . . . . . Distress Signals . | . . . . . . . . . . . . . . . . . . Times Spotted 264 | . 14 4 . . 1 35 1 5 47 6 7 . 23 31 31 7 52 Peak Tracking Total 7 | . 6 2 . . . 6 . 1 5 3 3 . 7 4 6 2 7 Tactical Retreats 10 | . 1 . . . . 1 . . 1 . . . . 2 2 . 3 Traps | -11 -10 -10 -10 -9 -8 -8 -7 -7 -7 -7 -7 -7 -6 -6 -6 -6 -6 ------- Run | Jun Mat Min Exi Min Mat Gar Fac Was Fac Low Low Dat Pro Fac Gar Fac Gar Traps Triggered 33 | . 4 . . . . 1 1 . 5 . . . . . 5 3 14 Indirectly 1 | . . . . . . . . . 1 . . . . . . . . Trap Hack Attempts . | . . . . . . . . . . . . . . . . . . Triggered . | . . . . . . . . . . . . . . . . . . Disarmed 3 | . 3 . . . . . . . . . . . . . . . . Reprogrammed 6 | . . . . . . . . . 3 . . . . 3 . . . Reused 2 | . . . . . . . . . 1 . . . . 1 . . . Traps Extracted . | . . . . . . . . . . . . . . . . . . Installed . | . . . . . . . . . . . . . . . . . . Triggered 3 | . . . . . . . . . 1 . . . 1 1 . . . Machines | -11 -10 -10 -10 -9 -8 -8 -7 -7 -7 -7 -7 -7 -6 -6 -6 -6 -6 ---------- Run | Jun Mat Min Exi Min Mat Gar Fac Was Fac Low Low Dat Pro Fac Gar Fac Gar Machines Disabled 51 | . . . . . . 8 . . 20 . . . . 1 13 . 9 Max in Single Turn 8 | . . . . . . 2 . . 8 . . . . 1 2 . 2 Garrison Relay 15 | . . . . . . 4 . . . . . . . . 6 . 5 Phase Generator 3 | . . . . . . 1 . . . . . . . . 1 . 1 Machines Repaired . | . . . . . . . . . . . . . . . . . . Machines Sabotaged . | . . . . . . . . . . . . . . . . . . Overloaded Fab Kills . | . . . . . . . . . . . . . . . . . . Hacking | -11 -10 -10 -10 -9 -8 -8 -7 -7 -7 -7 -7 -7 -6 -6 -6 -6 -6 --------- Run | Jun Mat Min Exi Min Mat Gar Fac Was Fac Low Low Dat Pro Fac Gar Fac Gar Machines Accessed 51 | . 10 . 1 . 2 4 . . 9 1 . 4 . 7 2 9 2 Terminals 32 | . 7 . . . . 4 . . 6 . . . . 4 2 7 2 Fabricators 2 | . . . . . . . . . 1 . . . . 1 . . . Repair Stations 1 | . 1 . . . . . . . . . . . . . . . . Recycling Units 6 | . 2 . . . 1 . . . 1 . . . . 1 . 1 . Scanalyzers 1 | . . . . . . . . . 1 . . . . . . . . Garrison Access 3 | . . . . . 1 . . . . . . . . 1 . 1 . Total Hacks 141 | . 24 . 1 . 3 8 . . 29 1 . 30 . 19 3 21 2 Successful 106 | . 18 . 1 . 3 6 . . 16 1 . 30 . 10 2 17 2 Failed 35 | . 6 . . . . 2 . . 13 . . . . 9 1 4 . Catastrophic 1 | . 1 . . . . . . . . . . . . . . . . Database Lockouts . | . . . . . . . . . . . . . . . . . . Manual 33 | . 8 . 1 . . 3 . . 9 . . . . 4 . 8 . Terminals 82 | . 20 . . . . 8 . . 19 . . . . 13 3 17 2 Fabricators 6 | . . . . . . . . . 2 . . . . 4 . . . Repair Stations 2 | . 2 . . . . . . . . . . . . . . . . Recycling Units 10 | . 2 . . . 2 . . . 2 . . . . 1 . 3 . Scanalyzers 6 | . . . . . . . . . 6 . . . . . . . . Garrison Access 3 | . . . . . 1 . . . . . . . . 1 . 1 . Terminal Hacks 64 | . 7 . 1 . . 3 . . 7 1 . 30 . 2 2 9 2 Record 14 | . 2 . . . . . . . . . . 11 . . . 1 . Part Schematic 11 | . . . . . . . . . . . . 10 . . . 1 . Robot Schematic 7 | . . . . . . . . . 1 . . 6 . . . . . Prototype ID Bank 3 | . . . . . . . . . . . . 3 . . . . . Open Door 2 | . . . . . . 1 . . . 1 . . . . . . . Open DSF 4 | . . . . . . . . . 1 . . . . 1 . 2 . Level Access Points 2 | . . . . . . . . . 1 . . . . . . 1 . Branch Access Points 1 | . . . . . . . . . 1 . . . . . . . . Emergency Access Points 3 | . . . . . . 1 . . . . . . . . 1 . 1 Unreport Threat 1 | . . . . . . . . . . . . . . . . 1 . Locate Traps 2 | . . . . . . . . . . . . . . . . 2 . Disarm Traps 2 | . 2 . . . . . . . . . . . . . . . . Reprogram Traps 2 | . . . . . . . . . 1 . . . . 1 . . . Zone Layout 6 | . 3 . . . . . . . 2 . . . . . . 1 . Garrison Registry 2 | . . . . . . . . . . . . . . . 1 . 1 Security Stations 1 | . . . . . . 1 . . . . . . . . . . . EX-Prototype ID Bank 1 | . . . 1 . . . . . . . . . . . . . . Fabricator Hacks 3 | . . . . . . . . . . . . . . 3 . . . Network Status 1 | . . . . . . . . . . . . . . 1 . . . Load Schematic 1 | . . . . . . . . . . . . . . 1 . . . Build 1 | . . . . . . . . . . . . . . 1 . . . Repair Station Hacks 2 | . 2 . . . . . . . . . . . . . . . . Scan Component 1 | . 1 . . . . . . . . . . . . . . . . Repair 1 | . 1 . . . . . . . . . . . . . . . . Recycling Unit Hacks 8 | . 2 . . . 2 . . . 1 . . . . 1 . 2 . Report Inventory 6 | . 2 . . . 1 . . . 1 . . . . 1 . 1 . Retrieve Components 2 | . . . . . 1 . . . . . . . . . . 1 . Scanalyzer 4 | . . . . . . . . . 4 . . . . . . . . Insert Component 2 | . . . . . . . . . 2 . . . . . . . . Analyze 2 | . . . . . . . . . 2 . . . . . . . . Garrison Access Hacks 3 | . . . . . 1 . . . . . . . . 1 . 1 . Unlock Access 3 | . . . . . 1 . . . . . . . . 1 . 1 . Unauthorized Hacks 22 | . 7 . . . . 3 . . 4 . . . . 3 . 5 . Terminals 22 | . 7 . . . . 3 . . 4 . . . . 3 . 5 . Botnet 22 | . 7 . . . . 3 . . 4 . . . . 3 . 5 . Fabricators . | . . . . . . . . . . . . . . . . . . Repair Stations . | . . . . . . . . . . . . . . . . . . Recycling Units . | . . . . . . . . . . . . . . . . . . Scanalyzers . | . . . . . . . . . . . . . . . . . . Garrison Access . | . . . . . . . . . . . . . . . . . . Data Cores Recovered . | . . . . . . . . . . . . . . . . . . Used . | . . . . . . . . . . . . . . . . . . Hacking Detections 27 | . 6 . . . 2 2 . . 6 . . . . 6 . 5 . Full Trace Events 9 | . 3 . . . . 1 . . 3 . . . . 2 . . . Feedback Events . | . . . . . . . . . . . . . . . . . . Feedback Blocked . | . . . . . . . . . . . . . . . . . . Robot Schematics Acquired 7 | . . . . . . . . . 1 . . 6 . . . . . Robots Built 2 | . . . . . . . . . . . . . . 2 . . . Authchips . | . . . . . . . . . . . . . . . . . . Time 84 | . . . . . . . . . . . . . . 84 . . . Total Robot Build Rating 12 | . . . . . . . . . . . . . . 12 . . . Part Schematics Acquired 13 | . . . . . . . . . 2 . . 10 . . . 1 . Parts Built . | . . . . . . . . . . . . . . . . . . Authchips . | . . . . . . . . . . . . . . . . . . Time . | . . . . . . . . . . . . . . . . . . Total Part Build Rating . | . . . . . . . . . . . . . . . . . . Parts Repaired 1 | . 1 . . . . . . . . . . . . . . . . Time 26 | . 26 . . . . . . . . . . . . . . . . Parts Recycled . | . . . . . . . . . . . . . . . . . . Recycled Matter . | . . . . . . . . . . . . . . . . . . Retrieved Matter . | . . . . . . . . . . . . . . . . . . Retrieved Components 5 | . . . . . 2 . . . . . . . . . . 3 . Parts Scanalyzed 2 | . . . . . . . . . 2 . . . . . . . . Part Schematics Acquired 2 | . . . . . . . . . 2 . . . . . . . . Parts Damaged . | . . . . . . . . . . . . . . . . . . Bothacking | -11 -10 -10 -10 -9 -8 -8 -7 -7 -7 -7 -7 -7 -6 -6 -6 -6 -6 ------------ Run | Jun Mat Min Exi Min Mat Gar Fac Was Fac Low Low Dat Pro Fac Gar Fac Gar Used RIF Installer 2 | . . . . . . 1 . . . . . . . . 1 . . Robot Detection 1 | . . . . . . . . . . . . . . . 1 . . Robots Hacked 7 | . . . . . . . . 4 . . . . 1 . 1 . 1 Non-combat . | . . . . . . . . . . . . . . . . . . Combat 6 | . . . . . . . . 4 . . . . . . 1 . 1 Robot Hacks Applied 9 | . . . . . . . . 7 . . . . . . 1 . 1 ignore_targets 5 | . . . . . . . . 5 . . . . . . . . . link_fov 1 | . . . . . . . . 1 . . . . . . . . . overload_power 1 | . . . . . . . . 1 . . . . . . . . . formatsys_high 2 | . . . . . . . . . . . . . . . 1 . 1 Manual 1 | . . . . . . . . . . . . . 1 . . . . Relay Couplers Released 69 | . . . . . . 20 . . . . . . . . 31 . 18 Machine Destruction 66 | . . . . . . 20 . . . . . . . . 28 . 18 Programmers 3 | . . . . . . . . . . . . . . . 3 . . Attached 9 | . . . . . . . . 1 . . . . . . 5 . 3 Fabnet Peak Effective % . | . . . . . . . . . . . . . . . . . . Robots Rewired . | . . . . . . . . . . . . . . . . . . Allies Hacked . | . . . . . . . . . . . . . . . . . . Hacks Repelled . | . . . . . . . . . . . . . . . . . . Allies | -11 -10 -10 -10 -9 -8 -8 -7 -7 -7 -7 -7 -7 -6 -6 -6 -6 -6 -------- Run | Jun Mat Min Exi Min Mat Gar Fac Was Fac Low Low Dat Pro Fac Gar Fac Gar Total Allies 19 | . . . . . . 1 . . 12 . . . 2 2 1 . 1 Largest Group 8 | . . . . . . 1 1 1 8 . . . 1 2 1 . 1 Highest-Rated Group 202 | . . . . . . 39 39 39 202 . . . 96 98 32 . 85 Highest-Rated Ally 96 | . . . . . . 39 39 39 31 . . . 96 80 32 . 85 Total Orders 1 | . . . . . . . . . . . . . . 1 . . . GUARD 1 | . . . . . . . . . . . . . . 1 . . . Ally Attacks 130 | . . . . . . . 1 48 . . . . 15 48 10 . 8 Total Damage 4156 | . . . . . . . 18 799 . . . . 717 1790 332 . 500 Kills 26 | . . . . . . . 1 6 . . . . 3 9 4 . 3 Allies Corrupted 1 | . . . . . . . . 1 . . . . . . . . . Allies Melted . | . . . . . . . . . . . . . . . . . . Intel | -11 -10 -10 -10 -9 -8 -8 -7 -7 -7 -7 -7 -7 -6 -6 -6 -6 -6 ------- Run | Jun Mat Min Exi Min Mat Gar Fac Was Fac Low Low Dat Pro Fac Gar Fac Gar Robot Analysis Total . | . . . . . . . . . . . . . . . . . . Derelict Logs Recovered 6 | . . 1 . . . . . . . 1 2 . 2 . . . . Drone Launches . | . . . . . . . . . . . . . . . . . . Drone Recoveries . | . . . . . . . . . . . . . . . . . . Exploration | -11 -10 -10 -10 -9 -8 -8 -7 -7 -7 -7 -7 -7 -6 -6 -6 -6 -6 ------------- Run | Jun Mat Min Exi Min Mat Gar Fac Was Fac Low Low Dat Pro Fac Gar Fac Gar Turns Passed 23584 | 70 1676 540 453 174 143 2128 208 452 2317 736 994 211 2926 2592 2676 2119 3169 Spaces Moved 10756 | 52 856 259 357 160 119 1180 139 216 941 359 446 81 1152 1211 1078 975 1175 Core 21 | 21 . . . . . . . . . . . . . . . . . Treads 9 | . . . . . . . . . . . . . 9 . . . . Legs 10726 | 31 856 259 357 160 119 1180 139 216 941 359 446 81 1143 1211 1078 975 1175 Wheels . | . . . . . . . . . . . . . . . . . . Hover . | . . . . . . . . . . . . . . . . . . Flight . | . . . . . . . . . . . . . . . . . . Fastest Speed 50 | 50 120 190 90 90 100 100 100 182 187 186 186 263 190 120 190 192 190 Average Speed 176 | 97 173 190 123 90 100 100 136 185 189 188 206 263 218 178 192 192 190 Slowest Speed 560 | 120 190 190 190 90 100 100 182 187 192 189 263 263 560 192 260 192 194 Overloaded Moves . | . . . . . . . . . . . . . . . . . . Propulsion Burnouts . | . . . . . . . . . . . . . . . . . . Robots Hopped . | . . . . . . . . . . . . . . . . . . Cave-ins Triggered . | . . . . . . . . . . . . . . . . . . Exploration Rate (%) 55 | 4 98 58 65 30 12 99 3 92 29 51 68 70 96 26 94 25 79 Regions Visited 17 Branch Regions 7 Pre-discovered Areas 1 | . . . . . . . . . . . . 1 . . . . . Known Exits Taken 13 | 1 1 1 1 1 1 . . . 1 1 1 1 1 1 . 1 . Unknown Exits Taken . | . . . . . . . . . . . . . . . . . . Scrap Searched 11 | . . . . . . . . . . 2 4 . 5 . . . . Spaces Dug 26 | . . . . . . 25 . . . . . . . . . . 1 Terrain Destroyed 487 | . . . . . . 180 . . 2 . . . 1 5 79 . 220 Melee 25 | . . . . . . 25 . . . . . . . . . . . Projectile 33 | . . . . . . . . . 2 . . . 1 5 5 . 20 AOE 429 | . . . . . . 155 . . . . . . . . 74 . 200 Terrain Rammed . | . . . . . . . . . . . . . . . . . . Walls Destroyed . | . . . . . . . . . . . . . . . . . . Machines Disabled . | . . . . . . . . . . . . . . . . . . Actions | -11 -10 -10 -10 -9 -8 -8 -7 -7 -7 -7 -7 -7 -6 -6 -6 -6 -6 --------- Run | Jun Mat Min Exi Min Mat Gar Fac Was Fac Low Low Dat Pro Fac Gar Fac Gar Total 13403 | 66 996 288 369 188 138 1578 154 264 1262 388 479 80 1420 1467 1456 1199 1611 Wait 831 | . 63 9 . 24 . 47 . 14 133 11 . . 112 73 140 138 67 Move 10743 | 51 855 258 356 159 119 1179 139 215 940 358 445 80 1151 1211 1077 975 1175 Hop . | . . . . . . . . . . . . . . . . . . Pick Up 247 | 7 20 2 4 2 6 14 6 9 29 2 4 . 21 36 33 16 36 Fast Attach 24 | 6 . . . . . 1 . . 1 . . . 1 . 4 4 7 Attach 139 | 1 3 . . . 4 9 2 8 13 2 8 . 22 19 24 6 18 Detach 12 | . . . . . . 1 . . . . . . 2 3 2 4 . Swap 164 | . 8 1 4 . 4 16 3 8 20 1 . . 4 19 18 11 47 Drop 161 | . 17 3 4 1 3 7 2 1 12 1 . . 13 17 23 23 34 Fire 781 | 1 27 15 1 1 2 155 2 . 94 13 18 . 71 80 107 11 183 Melee 211 | . . . . . . 148 . 9 12 . 4 . 23 6 8 . 1 Ram . | . . . . . . . . . . . . . . . . . . Kick 15 | . 3 . . 1 . . . . 3 . . . . 3 . 5 . Crush . | . . . . . . . . . . . . . . . . . . Escape Stasis 74 | . . . . . . . . . 5 . . . . . 20 6 43 Rewire 1 | . . . . . . 1 . . . . . . . . . . . Trap . | . . . . . . . . . . . . . . . . . . Miscellaneous . | . . . . . . . . . . . . . . . . . . Route ------- -11/Junkyard -10/Materials (discovered 4 exits: *Mat x3 / *Min) -10/Mines (discovered 2 exits: *Mat / *Exi) -10/Exiles -9/Mines -8/Materials -8/Garrison (discovered 3 exits: *Fac x3) -7/Factory -7/Waste -7/Factory (discovered 7 exits: Fac x4 / Sto / *Low x2) -7/Lower Caves -7/Lower Caves (discovered 2 exits: *Fac / *Dat) -7/Data Miner -6/Proximity Caves -6/Factory (discovered 7 exits: *Fac x4 / *Low x2 / Gar) -6/Garrison (discovered 3 exits: *Fac x3) -6/Factory (discovered 5 exits: *Fac x4 / Gar) -6/Garrison (discovered 3 exits: *Fac x3) History --------- Turn | Location | Event 13 | -11/Junkyard | Identified exit to Materials 13 | -11/Junkyard | Discovered exit to Materials (range 16) 71 | -11/Junkyard | Entered Materials 71 | -10/Materials | Evolved 1 slot: Utility x1 300 | -10/Materials | Build established: Hacker-Mutant 365 | -10/Materials | Identified exit to Mines 365 | -10/Materials | Discovered exit to Mines (range 7) 619 | -10/Materials | Identified exit to Materials 619 | -10/Materials | Discovered exit to Materials (range 3) 902 | -10/Materials | Discovered exit to Materials (range 5) 1291 | -10/Materials | Repaired Aluminum Leg 1374 | -10/Materials | Discovered exit to Materials (range 8) 1747 | -10/Materials | Entered Mines 1846 | -10/Mines | Discovered exit to Materials (range 6) 1957 | -10/Mines | Learned Materials stockpile data 2280 | -10/Mines | Deemed a non-threat by the Exiles lab entrance 2280 | -10/Mines | Identified exit to Exiles 2280 | -10/Mines | Discovered exit to Exiles (range 5) 2287 | -10/Mines | Entered Exiles 2335 | -10/Exiles | Met 8R-AWN 2365 | -10/Exiles | Met EX-HEX 2428 | -10/Exiles | Met EX-BIN 2451 | -10/Exiles | Aligned with FarCom system 2453 | -10/Exiles | Given EX-Vault access code 2498 | -10/Exiles | Opened EX-Vault 2514 | -10/Exiles | Found Potential Leg 2516 | -10/Exiles | Found Potential Leg 2541 | -10/Exiles | Warned to stay clear of 0b10 Research branches 2698 | -10/Exiles | Met EX-DEC 2730 | -10/Exiles | Identified exit to Mines 2730 | -10/Exiles | Discovered exit to Mines (range 14) 2740 | -10/Exiles | Left Exiles lab with Potential Leg 2740 | -10/Exiles | Entered Mines 2747 | -9/Mines | Received a Rocket Launcher from a helpful Derelict 2797 | -9/Mines | Found a hidden stash of uninstalled traps 2834 | -9/Mines | Identified exit to Materials 2834 | -9/Mines | Discovered exit to Materials (range 14) 2880 | -9/Mines | Assembled infested the area 2914 | -9/Mines | Entered Materials 2914 | -8/Materials | Evolved 4 slots: Power x1, Propulsion x1, Utility x1, Weapon x1 3057 | -8/Materials | Identified exit to Garrison 3057 | -8/Materials | Entered Garrison 3252 | -8/Garrison | Triggered checkpoint 3273 | -8/Garrison | Build established: Hacker-Skirmisher 3560 | -8/Garrison | Garrison Relay disabled 3638 | -8/Garrison | Phase Generator disabled 3707 | -8/Garrison | Triggered checkpoint 3736 | -8/Garrison | Triggered checkpoint 3783 | -8/Garrison | Garrison Relay disabled 3896 | -8/Garrison | Build established: Scavenger-Mutant 3903 | -8/Garrison | Identified exit to Factory 3903 | -8/Garrison | Discovered exit to Factory (range 8) 4222 | -8/Garrison | Triggered checkpoint 4242 | -8/Garrison | Garrison Relay disabled 4322 | -8/Garrison | Learned Factory security intel 4334 | -8/Garrison | Discovered exit to Factory (range 10) 4480 | -8/Garrison | Triggered checkpoint 4575 | -8/Garrison | Lost 3 parts (1p1n1w) 4582 | -8/Garrison | Discovered exit to Factory (range 12) 4630 | -8/Garrison | Installed Relay Interface Framework 4668 | -8/Garrison | Triggered checkpoint 4714 | -8/Garrison | Triggered checkpoint 4799 | -8/Garrison | Garrison Relay disabled 4839 | -8/Garrison | Rescued a captive Derelict 4930 | -8/Garrison | Triggered checkpoint 5185 | -8/Garrison | Entered Factory 5185 | -7/Factory | Accompanied by 1 ally 5185 | -7/Factory | Evolved 2 slots: Propulsion x1, Utility x1 5393 | -7/Factory | Sucked down chute 5393 | -7/Factory | Entered Waste 5400 | -7/Waste | 1 allies followed down the chute 5408 | -7/Waste | EMP discharged 5433 | -7/Waste | Spotted C-40 Crusher 5440 | -7/Waste | Allies destroyed C-40 Crusher 5478 | -7/Waste | Spotted C-40 Crusher 5485 | -7/Waste | Crushed by Compactor (1 part destroyed, 2 dropped) 5493 | -7/Waste | Spotted C-40 Crusher 5496 | -7/Waste | Allies destroyed C-40 Crusher 5499 | -7/Waste | Allies destroyed C-40 Crusher 5508 | -7/Waste | EMP discharged 5517 | -7/Waste | Spotted C-40 Crusher 5532 | -7/Waste | Allies destroyed C-40 Crusher 5536 | -7/Waste | Spotted C-40 Crusher 5545 | -7/Waste | Crushed by Compactor (1 part destroyed, 2 dropped) 5576 | -7/Waste | Lost 3 parts (1n1u1w) 5592 | -7/Waste | Allies destroyed C-40 Crusher 5593 | -7/Waste | Spotted C-40 Crusher 5608 | -7/Waste | EMP discharged 5614 | -7/Waste | Allies destroyed C-40 Crusher 5708 | -7/Waste | EMP discharged 5764 | -7/Waste | Identified exit to Factory 5764 | -7/Waste | Discovered exit to Factory (range 16) 5808 | -7/Waste | EMP discharged 5845 | -7/Waste | Entered Factory 6992 | -7/Factory | Build established: Scavenger-Tank 7381 | -7/Factory | Build established: Scavenger-Skirmisher 7410 | -7/Factory | System corruption reached 10% 7461 | -7/Factory | Lost 5 parts (1p1n3u) 7700 | -7/Factory | Identified exit to Factory 8032 | -7/Factory | Identified exit to Storage 8032 | -7/Factory | Identified exit to Lower Caves 8146 | -7/Factory | Build established: Scavenger-Tank 8162 | -7/Factory | Entered Lower Caves 8163 | -7/Lower Caves | Encountered a Warlord checkpoint 8174 | -7/Lower Caves | Learned 4 Factory zone layouts 8820 | -7/Lower Caves | Found Prototype Device 8844 | -7/Lower Caves | Identified exit to Lower Caves 8844 | -7/Lower Caves | Discovered exit to Lower Caves (range 8) 8898 | -7/Lower Caves | Entered another Lower Caves area 8990 | -7/Lower Caves | Discovered exit to Factory (range 9) 9291 | -7/Lower Caves | Learned location of 1 exit from Factory 9504 | -7/Lower Caves | Build established: Scavenger-Mutant 9555 | -7/Lower Caves | Learned Factory trap positions 9587 | -7/Lower Caves | Spotted B-75 Beast 9613 | -7/Lower Caves | Destroyed B-75 Beast 9635 | -7/Lower Caves | Lost 3 parts (1p1u1w) 9871 | -7/Lower Caves | Identified exit to Data Miner 9871 | -7/Lower Caves | Discovered exit to Data Miner (range 9) 9892 | -7/Lower Caves | Entered Data Miner 9892 | -7/Data Miner | Identified exit to Proximity Caves 9892 | -7/Data Miner | Discovered exit to Proximity Caves (range 6) 9942 | -7/Data Miner | Met Data Miner 10000 | -7/Data Miner | Learned location of Section 7 (-2) 10000 | -7/Data Miner | Acquired the access code to Warlord's prototype stash 10042 | -7/Data Miner | Received God Mode back door access code from Data Miner 10103 | -7/Data Miner | Entered Proximity Caves 10269 | -6/Proximity Caves | Attracted the attention of an 0b10 outpost 10278 | -6/Proximity Caves | Escorted by Enhanced Grunt 10344 | -6/Proximity Caves | Lost 6 parts (4n1u1w) 10474 | -6/Proximity Caves | Lost 4 parts (1n2u1w) 10599 | -6/Proximity Caves | Learned location of 2 exits from Factory 10738 | -6/Proximity Caves | Core integrity fell below 50% 10912 | -6/Proximity Caves | Received a Behemoth hack from an annoying Tinkerer 11361 | -6/Proximity Caves | Spotted B-75 Beast 11365 | -6/Proximity Caves | Befriended a Behemoth using the annoying Tinkerer's hack 11388 | -6/Proximity Caves | Identified Heart of Steel 11416 | -6/Proximity Caves | Learned Factory emergency access door positions 12336 | -6/Proximity Caves | Attracted the attention of an 0b10 checkpoint 13008 | -6/Proximity Caves | Discovered exit to Factory (range 9) 13029 | -6/Proximity Caves | Entered Factory 13029 | -6/Factory | Accompanied by 1 ally 13029 | -6/Factory | Evolved 2 slots: Propulsion x1, Utility x1 13030 | -6/Factory | Identified exit to Factory 13032 | -6/Factory | Loaded intel: 131 trap records 13429 | -6/Factory | Discovered exit to Factory (range 5) 13429 | -6/Factory | Identified exit to Lower Caves 13429 | -6/Factory | Discovered exit to Lower Caves (range 9) 13685 | -6/Factory | Spotted B-75 Beast 13725 | -6/Factory | Fabricated Y-64 Sentinel (x2) 13750 | -6/Factory | Allies destroyed B-75 Beast 13780 | -6/Factory | Lost 3 parts (1p1n1w) 14235 | -6/Factory | Incoming investigation squad redirected 14541 | -6/Factory | Build established: Hacker-Mutant 14585 | -6/Factory | Discovered exit to Lower Caves (range 11) 15621 | -6/Factory | Identified exit to Garrison 15621 | -6/Factory | Entered Garrison 15659 | -6/Garrison | Expanded RIF knowledge: Robot Detection 15676 | -6/Garrison | Triggered checkpoint 15696 | -6/Garrison | Garrison Relay disabled 15822 | -6/Garrison | Triggered checkpoint 15829 | -6/Garrison | Triggered checkpoint 15887 | -6/Garrison | Lost 3 parts (2n1w) 15889 | -6/Garrison | Destroyed 7 combat bots 15912 | -6/Garrison | Build established: Hacker-Skirmisher 16255 | -6/Garrison | Garrison Relay disabled 16448 | -6/Garrison | Triggered checkpoint 16597 | -6/Garrison | Core integrity fell below 50% 16627 | -6/Garrison | Lost 8 parts (4p2n1u1w) 16672 | -6/Garrison | Found Imp. Powered Armor 16698 | -6/Garrison | Garrison Relay disabled 16775 | -6/Garrison | Build established: Hacker-Mutant 16866 | -6/Garrison | Triggered checkpoint 16990 | -6/Garrison | Triggered checkpoint 17058 | -6/Garrison | Garrison Relay disabled 17248 | -6/Garrison | Identified exit to Factory 17248 | -6/Garrison | Discovered exit to Factory (range 8) 17452 | -6/Garrison | Triggered checkpoint 17489 | -6/Garrison | Build established: Bothacker-Tank 17587 | -6/Garrison | Phase Generator disabled 17647 | -6/Garrison | Discovered exit to Factory (range 10) 17782 | -6/Garrison | Garrison Relay disabled 17806 | -6/Garrison | Triggered checkpoint 17837 | -6/Garrison | Garrison Relay disabled 17852 | -6/Garrison | Discovered exit to Factory (range 59) 17852 | -6/Garrison | Discovered exit to Factory (range 80) 17852 | -6/Garrison | Discovered exit to Factory (range 16) 18055 | -6/Garrison | Spotted Executioner 18297 | -6/Garrison | Entered Factory 18922 | -6/Factory | Build established: Bothacker-Skirmisher 19239 | -6/Factory | Build established: Bothacker-Gunner 19812 | -6/Factory | Found Unknown Protection 19946 | -6/Factory | Build established: Hacker-Skirmisher 20326 | -6/Factory | Identified Hvy. Reflective Plating 20416 | -6/Factory | Identified exit to Garrison 20416 | -6/Factory | Entered Garrison 20545 | -6/Garrison | Phase Generator disabled 20774 | -6/Garrison | Destroyed 7 combat bots 20799 | -6/Garrison | Garrison Relay disabled 21005 | -6/Garrison | Triggered checkpoint 21005 | -6/Garrison | Garrison Relay disabled 21063 | -6/Garrison | Spotted B-75 Beast 21073 | -6/Garrison | Assimilated Beast 5a with formatsys_high 21096 | -6/Garrison | Triggered checkpoint 21269 | -6/Garrison | Spotted B-75 Beast 21300 | -6/Garrison | Destroyed B-75 Beast 21566 | -6/Garrison | Discovered exit to Factory (range 10) 21647 | -6/Garrison | Core integrity fell below 20% 21678 | -6/Garrison | Rescued a captive Derelict 22614 | -6/Garrison | Triggered checkpoint 22628 | -6/Garrison | Garrison Relay disabled 22972 | -6/Garrison | Build established: Hacker-Tank 22978 | -6/Garrison | Triggered checkpoint 22987 | -6/Garrison | Triggered checkpoint 23065 | -6/Garrison | Lost 3 parts (1p1n1u) 23155 | -6/Garrison | Spotted B-75 Beast 23162 | -6/Garrison | Garrison Relay disabled 23195 | -6/Garrison | Destroyed B-75 Beast 23314 | -6/Garrison | Triggered checkpoint 23325 | -6/Garrison | Discovered exit to Factory (range 60) 23325 | -6/Garrison | Discovered exit to Factory (range 30) 23325 | -6/Garrison | Discovered exit to Factory (range 53) 23350 | -6/Garrison | Garrison Relay disabled 23585 | -6/Garrison | Destroyed by G-50 Soldier with Heavy Laser Last Messages --------------- 23367_ Extracted 12 matter. 23416_ ALERT: Garrison interior compromised. 23422_ Slug penetrates Wall. 23422_ Slug penetrates Phase Generator. 23438_ Phase Generator explodes. 23500_ Slug penetrates Y-54 Guardian. 23506_ Slug penetrates Wall. 23507_ Lyr. Medium Armor Plating destroyed. 23507_ Flexi-carbon Leg destroyed. 23509_ Y-54 Guardian destroyed. 23509_ Switching to secondary target: Y-54 Guardian. 23509_ Slug penetrates Y-54 Guardian. 23509_ Y-54 Guardian destroyed. 23514_ Acquired Imp. Kinecellerator. 23519_ Acquired Flak Gun. 23522_ Acquired 62 matter. 23544_ Acquired Imp. Kinecellerator. 23561_ Slug penetrates Y-54 Guardian. 23564_ Y-54 Guardian destroyed. 23566_ ALERT: Garrison interior compromised. Map ----- +----------------------------------------------------+ | | | | | | | | | | | ?????????????????????????????????????????????????? | | ?????????????????????????????????????????????????? | | ?????????????????????????????????????????????????? | | ?????????????????????????????????????????????????? | | ?????????????????????????????????????????????????? | | ?????????????????????????????????????????????????? | | ?????????????????????????????????????????????????? | | ??????????????????????????????????????????#######? | | ????????????????????????????#######????####"""""#? | | ????????????????????????????# ###### "#? | | ????????????????????????????# < # "#? | | ????????????????????????????# ###### "## | | ????????????????????????????### #????# """" | | ??????????????????????????????# #????# ### | | ??????????????????????????????# #????# #?? | | ??????????????????????????????# #????# #?? | | ??????????????????????????????# #????### ###?? | | ??????????????????????????????# g#??????# !##### | | ??????????????????????????????# #??????# | | ???????????????????############l ##?????# !##### | | ???????????????????# @ g !%#?????# #???? | | ???????????????????# ########## !##??????# #????? | | ???????????????????# #????????# #???????# #????? | | ????????????????####+####?????# #???????# #????? | | ????????????????#!! ^ !!#?????# #????####+####?? | | ??????????????###!! !!###???# #????# "#?? | | ??????????????#%*![ !%*#???# #????# !!! "#?? | | ??????????????###!! !###???# #????# "" ""#?? | | ????????????????#!! ^ !#?????# #????# #######?? | | ????????????????####+####?????# #????# #???????? | | ???????????????????# #????????# #??### #???????? | | ?????????????????### ########## #### #???????? | | ?????????????????# #???????? | | ?????????????????# ####### #### =[#### #???????? | | ?????????????????# #?????# #??#%=%#??### ######??? | | ?????????????????# #?????# #### [%###### ##"T"#??? | | ?????????????????# #?????# "#??? | | ?????????????##### #?????# #### !#############??? | | ?????????????# #?????# #??# = #??????????????? | | ?????????????# ### #?????# #?## ################ | | ??????????#### #?# #?????# #?# ! | | ?????###??# #?# #?????# #?# ! | | ?????#"#### ### ####### #### #########"# ! | | ###### #???????### ! | | ^ #?????????# ! | +----------------------------------------------------+ Best States ------------- Heat Dissipation 61 Energy Generation 41 Energy Capacity 700 Matter Stores 300 Matter Capacity 300 Sight Range 16 Terrain Scan Density 10 ECM Strength 1 Additional Mass Support 6 Base Temperature (-) 150 EM Shielding 2 Corruption Containment 8 Corruption Block 8 Armor Coverage 625 Resistance: KI 55 Resistance: TH 35 Resistance: EX 35 Resistance: EM 60 Resistance: I 35 Resistance: S 35 Resistance: P 35 Core Shielding 30 Power Shielding 66 Propulsion Shielding 66 Utility Shielding 33 Phase Shifting 15 Evasion (%) 57 Targeting Accuracy 8 Target Analysis 5 Recoil Reduction 1 Kinecelleration 40 Offensive Hacking 32 Defensive Hacking 12 Relay Coupler Types 2 Relay Coupler Value 52 Item Schematics ----------------- Structural Scanner | -7/Factory | Scanalyzed Core Shielding | -7/Factory | Scanalyzed Combat Drone Bay | -7/Data Miner | Free Lgt. Regenerative Plating | -7/Data Miner | Free Cld. Aerolev Unit | -7/Data Miner | Free Gravity Neutralizer | -7/Data Miner | Free Field Propulsion Drive | -7/Data Miner | Free Recoil Nullifier | -7/Data Miner | Free Imp. Heavy Laser | -7/Data Miner | Free Adv. Plasma Cannon | -7/Data Miner | Free Adv. Trap Scanner | -7/Data Miner | Free Adv. Medium Treads | -7/Data Miner | Free Adv. Signal Interpreter | -6/Factory | Hacked Robot Schematics ------------------ T-07 Excavator | -7/Factory | Hacked A-15 Conveyor | -7/Data Miner | Free H-55 Commando | -7/Data Miner | Free O-24 Administrator | -7/Data Miner | Free W-25 Informer | -7/Data Miner | Free Y-54 Guardian | -7/Data Miner | Free Y-64 Sentinel | -7/Data Miner | Free Fabricated ------------ Y-64 Sentinel | x2 | -6/Factory Alien Tech Used ----------------- None Achievements -------------- Assimilation Complete Woof! Challenges ------------ None Game ------ Seed SystemRefineryDetector Manual? 0 Play Time 04:17:21 Cumulative 106.7 hours Start 2023.03.05 @ 14:03:00 End 2023.03.17 @ 06:12:25 Sessions 7 Manual Loads 0 Difficulty Explorer Special Mode None Game No. 107 Rogue 0 Adventurer 102 Explorer 5 Win Type - Total 0 Types 0/0/0/0/0/0/0/0/0 Lore% 41 Gallery% 52 Achievement% 39 Wizard Run 0 Options --------- ASCII 0 Keyboard 0 Movement Mouse Keybinds 0 Fullscreen 1 Font 18/SmallcapsGlow Map View 117x51 Tactical HUD 1 Map Filters NONE Filters NONE Steam 1 RUN: 0fda8e2b-c453-4f7e-b6f1-4ca4c008c6d2